lending/lending_fUSD_20250122
["ID","MTS","AMOUNT","RATE_DAILY","PERIOD"]
[349965383,1737539472560,-937.58,0.0002136,2]
[349965384,1737539472571,-500.0,0.0002136,2]
[349965385,1737539472580,-618.82,0.0002136,2]
[349965386,1737539472589,-715.49,0.0002136,2]
[349965387,1737539472599,-199.11235798,0.0002136,2]
[349965388,1737539472608,-996.45,0.0002136,2]
[349965389,1737539472618,-500.0,0.00021361,2]
[349965390,1737539472627,-500.0,0.00021361,2]
[349965391,1737539472636,-500.0,0.00021361,2]
[349965392,1737539472645,-948.11112396,0.00021361,2]
[349965393,1737539472662,-373.02887604,0.00021361,2]
[349965394,1737539472671,-939.41,0.00021361,2]
[349965395,1737539472680,-767.85327904,0.00021361,2]
[349965396,1737539472696,-205.45672096,0.00021361,2]
[349965397,1737539472705,-980.35,0.00021361,2]
[349965398,1737539472715,-500.0,0.00021361,2]
[349965399,1737539472723,-500.0,0.00021361,2]
[349965400,1737539472733,-875.35,0.00021361,2]
[349965401,1737539472742,-500.0,0.00021361,2]
[349965402,1737539472751,-500.0,0.00021361,2]
[349965403,1737539472761,-152.0,0.00021371,3]
[349965404,1737539472770,-208.0,0.0002139,2]
[349965405,1737539472779,-204.15211244,0.000214,2]
[349965406,1737539472788,-909.73,0.00021411,7]
[349965407,1737539472798,-909.73,0.00021411,7]
[349965408,1737539472807,-909.73,0.00021411,7]
[349965409,1737539472816,-909.73,0.00021411,7]
[349965410,1737539472825,-204.15211244,0.00021471,2]
[349965411,1737539472835,-544.31,0.00021491,2]
[349965412,1737539472844,-500.0,0.00021497,2]
[349965413,1737539472854,-250.1223198,0.000215,2]
[349965414,1737539472863,-2110.0,0.000215,2]
[349965415,1737539472872,-4432.43930684,0.000215,2]
[349965416,1737539472932,-500.0,0.00019441,2]
[349965417,1737539472941,-500.0,0.00020811,2]
[349965418,1737539472952,-26027.5,0.000215,2]
[349965419,1737539472963,-7151.76454746,0.000215,2]
[349965420,1737539473305,-500.0,0.00019441,2]
[349965421,1737539473317,-500.0,0.00019442,2]
[349965422,1737539473326,-500.0,0.00019442,2]
[349965423,1737539473335,-500.0,0.00019715,2]
[349965424,1737539473344,-152.193018,0.00019715,2]
[349965425,1737539473353,-180.57,0.00019716,2]
[349965426,1737539473363,-500.0,0.00019989,2]
[349965427,1737539473372,-214.41344537,0.00019999,2]
[349965428,1737539473381,-500.0,0.00020263,2]
[349965429,1737539473391,-500.0,0.00021085,2]
[349965430,1737539473400,-507.33,0.00021359,2]
[349965431,1737539473410,-193.39579592,0.000215,2]
[349965432,1737539473522,-500.0,0.00019441,2]
[349965433,1737539473532,-19851.79299423,0.000215,2]
[349965434,1737539473542,-304.301275,0.000215,2]
[349965435,1737539473551,-304.301275,0.000215,2]
[349965436,1737539473561,-174.88996566,0.00021534,2]
[349965437,1737539473571,-204.15211244,0.00021543,2]
[349965438,1737539473581,-2160.0,0.0002156,2]
[349965439,1737539473591,-206.16625035,0.00021567,2]
[349965440,1737539473600,-520.88792304,0.00021614,2]
[349965441,1737539473609,-204.15211244,0.00021614,3]
[349965442,1737539473619,-1833.0,0.00021616,2]
[349965443,1737539473629,-500.0,0.00021633,2]
[349965444,1737539473639,-500.0,0.00021633,2]
[349965445,1737539473648,-500.0,0.00021633,2]
[349965446,1737539473658,-924.72,0.00021633,2]
[349965447,1737539473668,-1138.95,0.00021633,2]
[349965448,1737539473677,-818.44,0.00021633,2]
[349965449,1737539473687,-2175.56,0.00021633,2]
[349965450,1737539473696,-500.0,0.00021633,2]
[349965451,1737539473706,-500.0,0.00021633,2]
[349965452,1737539473716,-500.0,0.00021633,2]
[349965453,1737539473725,-743.44,0.00021633,2]
[349965454,1737539473734,-1763.14,0.00021633,2]
[349965455,1737539473744,-999.52,0.00021633,2]
[349965456,1737539473753,-1084.08,0.00021633,2]
[349965457,1737539473762,-704.096055,0.00021633,2]
[349965458,1737539473772,-1301.57,0.00021633,2]
[349965459,1737539473782,-1132.86,0.00021633,2]
[349965460,1737539473791,-1771.29,0.00021633,2]
[349965461,1737539473801,-660.07,0.00021633,2]
[349965462,1737539473810,-941.14,0.00021633,2]
[349965463,1737539473821,-1237.633252,0.00021633,2]
[349965464,1737539473830,-1458.89,0.00021633,2]
[349965465,1737539473840,-2891.68,0.00021633,2]
[349965466,1737539473849,-2543.68,0.00021633,2]
[349965467,1737539473858,-500.0,0.00021633,2]
[349965468,1737539473867,-847.27,0.00021633,2]
[349965469,1737539473876,-809.5,0.00021633,2]
[349965470,1737539473885,-599.51,0.00021633,2]
[349965471,1737539473894,-1278.86,0.00021633,2]
[349965472,1737539473904,-2625.35,0.00021633,2]
[349965473,1737539473913,-501.8,0.00021633,2]
[349965474,1737539473923,-134.62370144,0.00021633,2]
[349965475,1737539474016,-500.0,0.00019716,2]
[349965476,1737539474025,-956.29629856,0.00021633,2]
[349965477,1737539474035,-1838.69546975,0.00021633,2]
[349965478,1737539474057,-457.00438,0.00021633,2]
[349965479,1737539474069,-551.409999,0.00021633,2]
[349965480,1737539474086,-434.4,0.00021633,2]
[349965481,1737539474097,-11.12015125,0.00021633,2]
[349965482,1737539474107,-406.66384873,0.00021633,2]
[349965483,1737539474118,-468.96,0.00021633,2]
[349965484,1737539474129,-469.45615127,0.00021633,2]
[349965485,1737539474140,-1076.69,0.00021633,2]
[349965486,1737539474149,-540.04,0.00021633,2]
[349965487,1737539474159,-842.21,0.00021633,2]
[349965488,1737539474171,-500.0,0.00021633,2]
[349965489,1737539474181,-1119.08,0.00021633,2]
[349965490,1737539474190,-996.35,0.00021633,2]
[349965491,1737539474199,-376.03365646,0.00021633,2]
[349965492,1737539474208,-1171.69,0.00021633,2]
[349965493,1737539474218,-602.97,0.00021633,2]
[349965494,1737539474227,-4255.43,0.00021633,2]
[349965495,1737539474236,-1387.04,0.00021633,2]
[349965496,1737539474246,-1143.16,0.00021633,2]
[349965497,1737539474372,-1965.65,0.00021633,2]
[349965498,1737539474382,-500.0,0.00021633,2]
[349965499,1737539474392,-818.07,0.00021633,2]
[349965500,1737539474401,-500.0,0.00021633,2]
[349965501,1737539474411,-1209.13,0.00021633,2]
[349965502,1737539474421,-875.21,0.00021633,2]
[349965503,1737539474430,-423.41,0.00021633,2]
[349965504,1737539474439,-2793.57,0.00021633,2]
[349965505,1737539474449,-1439.89,0.00021633,2]
[349965506,1737539474459,-1524.01,0.00021633,2]
[349965507,1737539474469,-1051.9,0.00021633,2]
[349965508,1737539474479,-500.0,0.00021633,2]
[349965509,1737539474489,-960.28,0.00021633,2]
[349965510,1737539474498,-548.15,0.00021633,2]
[349965511,1737539474508,-500.0,0.00021633,2]
[349965512,1737539474518,-755.05,0.00021633,2]
[349965513,1737539474528,-500.0,0.00021633,2]
[349965514,1737539474537,-500.0,0.00021633,2]
[349965515,1737539474546,-1639.44,0.00021633,2]
[349965516,1737539474556,-2246.81,0.00021633,2]
[349965517,1737539474565,-523.68,0.00021634,2]
[349965518,1737539474575,-627.18585746,0.00021634,2]
[349965519,1737539474584,-500.0,0.00021634,2]
[349965520,1737539474593,-500.0,0.00021634,2]
[349965521,1737539474602,-500.0,0.00021634,2]
[349965522,1737539474612,-500.0,0.00021634,2]
[349965523,1737539474621,-500.0,0.00021634,2]
[349965524,1737539474630,-814.47,0.00021634,2]
[349965525,1737539474639,-500.0,0.00021634,2]
[349965526,1737539474649,-500.0,0.00021634,2]
[349965527,1737539474658,-541.13,0.00021634,2]
[349965528,1737539474667,-500.0,0.00021634,2]
[349965529,1737539474676,-489.5499011,0.00021634,2]
[349965530,1737539474686,-501.98,0.00021634,2]
[349965531,1737539474695,-500.0,0.00021634,2]
[349965532,1737539474704,-500.0,0.00021634,2]
[349965533,1737539474713,-623.55,0.00021634,2]
[349965534,1737539474722,-500.0,0.00021634,2]
[349965535,1737539474731,-500.0,0.00021634,2]
[349965536,1737539474740,-547.09,0.00021634,2]
[349965537,1737539474750,-500.0,0.00021634,2]
[349965538,1737539474759,-500.0,0.00021634,2]
[349965539,1737539474768,-831.12,0.00021634,2]
[349965540,1737539474778,-512.68776609,0.00021634,2]
[349965541,1737539474788,-500.0,0.00021634,2]
[349965542,1737539474800,-537.72,0.00021634,2]
[349965543,1737539474810,-500.0,0.00021634,2]
[349965544,1737539474819,-574.61,0.00021634,2]
[349965545,1737539474829,-500.0,0.00021634,2]
[349965546,1737539474838,-815.28,0.00021634,2]
[349965547,1737539474847,-500.0,0.00021634,2]
[349965548,1737539474856,-500.0,0.00021634,2]
[349965549,1737539474866,-500.0,0.00021634,2]
[349965550,1737539474875,-500.0,0.00021634,2]
[349965551,1737539474884,-738.84,0.00021634,2]
[349965552,1737539474893,-1035.26,0.00021634,2]
[349965553,1737539474903,-795.1,0.00021634,2]
[349965554,1737539474912,-500.0,0.00021634,2]
[349965555,1737539474922,-586.3,0.00021634,2]
[349965556,1737539474931,-627.59,0.00021634,2]
[349965557,1737539474941,-734.0,0.00021634,2]
[349965558,1737539474951,-500.0,0.00021634,2]
[349965559,1737539474961,-653.39,0.00021634,2]
[349965560,1737539474970,-886.51,0.00021634,2]
[349965561,1737539474980,-816.46,0.00021634,2]
[349965562,1737539474990,-939.52,0.00021634,2]
[349965563,1737539474999,-500.0,0.00021634,2]
[349965564,1737539475009,-572.2,0.00021634,2]
[349965565,1737539475018,-500.0,0.00021634,2]
[349965566,1737539475027,-737.25,0.00021634,2]
[349965567,1737539475037,-536.52,0.00021634,2]
[349965568,1737539475047,-500.0,0.00021634,2]
[349965569,1737539475057,-544.31,0.00021634,2]
[349965570,1737539475066,-500.0,0.00021634,2]
[349965571,1737539475077,-515.54,0.00021634,2]
[349965572,1737539475093,-500.0,0.00021634,2]
[349965573,1737539475102,-500.0,0.00021634,2]
[349965574,1737539475112,-879.9,0.00021634,2]
[349965575,1737539475122,-500.0,0.00021634,2]
[349965576,1737539475131,-500.0,0.00021634,2]
[349965577,1737539475141,-500.0,0.00021634,2]
[349965578,1737539475151,-500.0,0.00021634,2]
[349965579,1737539475160,-653.55,0.00021634,2]
[349965580,1737539475170,-500.0,0.00021634,2]
[349965581,1737539475179,-716.12,0.00021634,2]
[349965582,1737539475189,-1087.87,0.00021634,2]
[349965583,1737539475198,-500.0,0.00021634,2]
[349965584,1737539475208,-500.0,0.00021634,2]
[349965585,1737539475217,-1135.96,0.00021634,2]
[349965586,1737539475227,-500.0,0.00021634,2]
[349965587,1737539475237,-526.7,0.00021634,2]
[349965588,1737539475246,-818.59,0.00021634,2]
[349965589,1737539475256,-500.0,0.00021634,2]
[349965590,1737539475265,-837.33,0.00021634,2]
[349965591,1737539475274,-978.34,0.00021634,2]
[349965592,1737539475284,-500.0,0.00021634,2]
[349965593,1737539475293,-500.0,0.00021634,2]
[349965594,1737539475303,-1075.0,0.00021634,2]
[349965595,1737539475313,-1187.42,0.00021634,2]
[349965596,1737539475324,-833.89,0.00021634,2]
[349965597,1737539475334,-889.93,0.00021634,2]
[349965598,1737539475343,-500.0,0.00021634,2]
[349965599,1737539475352,-500.0,0.00021634,2]
[349965600,1737539475362,-500.0,0.00021634,2]
[349965601,1737539475371,-896.87,0.00021634,2]
[349965602,1737539475380,-502.01,0.00021634,2]
[349965603,1737539475390,-954.74,0.00021634,2]
[349965604,1737539475400,-576.49,0.00021634,2]
[349965605,1737539475409,-500.0,0.00021634,2]
[349965606,1737539475419,-742.73,0.00021634,2]
[349965607,1737539475428,-1167.36,0.00021634,2]
[349965608,1737539475438,-500.0,0.00021634,2]
[349965609,1737539475447,-585.55,0.00021634,2]
[349965610,1737539475457,-500.0,0.00021634,2]
[349965611,1737539475466,-790.13,0.00021634,2]
[349965612,1737539475476,-954.36,0.00021634,2]
[349965613,1737539475487,-500.0,0.00021634,2]
[349965614,1737539475498,-887.74,0.00021634,2]
[349965615,1737539475508,-1229.19,0.00021634,2]
[349965616,1737539475517,-678.57,0.00021634,2]
[349965617,1737539475527,-500.0,0.00021634,2]
[349965618,1737539475537,-1111.82,0.00021634,2]
[349965619,1737539475547,-606.41,0.00021634,2]
[349965620,1737539475556,-550.34,0.00021634,2]
[349965621,1737539475566,-2275.36,0.00021634,2]
[349965622,1737539475577,-500.0,0.00021634,2]
[349965623,1737539475587,-2595.71,0.00021634,2]
[349965624,1737539475596,-532.62,0.00021634,2]
[349965625,1737539475606,-178.57573222,0.00021634,2]
[349965626,1737539475630,-500.0,0.00019715,2]
[349965627,1737539475639,-152.193018,0.00020263,2]
[349965628,1737539475649,-321.42426778,0.00021634,2]
[349965629,1737539475659,-5552.09,0.00021634,2]
[349965630,1737539475668,-666.15,0.00021634,2]
[349965631,1737539475678,-500.0,0.00021634,2]
[349965632,1737539475687,-500.0,0.00021634,2]
[349965633,1737539475696,-9446.35,0.00021634,2]
[349965634,1737539475706,-1133.96,0.00021634,2]
[349965635,1737539475716,-562.24,0.00021634,2]
[349965636,1737539475725,-757.56,0.00021634,2]
[349965637,1737539475734,-1637.65,0.00021634,2]
[349965638,1737539475744,-500.0,0.00021634,2]
[349965639,1737539475753,-680.6,0.00021634,2]
[349965640,1737539475763,-1232.93,0.00021634,2]
[349965641,1737539475773,-500.0,0.00021634,2]
[349965642,1737539475782,-794.46,0.00021634,2]
[349965643,1737539475792,-828.8,0.00021634,2]
[349965644,1737539475802,-903.63,0.00021634,2]
[349965645,1737539475812,-2101.98,0.00021634,2]
[349965646,1737539475822,-633.96,0.00021634,2]
[349965647,1737539475833,-595.9,0.00021634,2]
[349965648,1737539475842,-4309.02,0.00021634,2]
[349965649,1737539475852,-2922.04,0.00021634,2]
[349965650,1737539475861,-1756.62,0.00021634,2]
[349965651,1737539475870,-552.1,0.00021634,2]
[349965652,1737539475880,-500.0,0.00021634,2]
[349965653,1737539475890,-500.0,0.00021634,2]
[349965654,1737539475899,-1177.62,0.00021634,2]
[349965655,1737539475909,-3008.63,0.00021634,2]
[349965656,1737539475919,-1652.13,0.00021634,2]
[349965657,1737539475928,-500.0,0.00021634,2]
[349965658,1737539475938,-506.59,0.00021634,2]
[349965659,1737539475948,-1261.45,0.00021634,2]
[349965660,1737539475963,-500.0,0.00021634,2]
[349965661,1737539475980,-1900.25,0.00021634,2]
[349965662,1737539475995,-4250.42,0.00021634,2]
[349965663,1737539476004,-1112.25,0.00021634,2]
[349965664,1737539476014,-1762.32,0.00021634,2]
[349965665,1737539476023,-569.17,0.00021634,2]
[349965666,1737539476032,-500.0,0.00021634,2]
[349965667,1737539476041,-500.0,0.00021634,2]
[349965668,1737539476051,-694.24,0.00021634,2]
[349965669,1737539476061,-1099.05,0.00021634,2]
[349965670,1737539476070,-691.09,0.00021634,2]
[349965671,1737539476083,-1017.16,0.00021634,2]
[349965672,1737539476092,-2699.0,0.00021634,2]
[349965673,1737539476102,-937.05,0.00021634,2]
[349965674,1737539476112,-533.89,0.00021634,2]
[349965675,1737539476121,-560.78,0.00021634,2]
[349965676,1737539476130,-500.0,0.00021634,2]
[349965677,1737539476140,-1260.05,0.00021634,2]
[349965678,1737539476150,-2713.11,0.00021634,2]
[349965679,1737539476159,-500.0,0.00021634,2]
[349965680,1737539476170,-1081.89,0.00021634,2]
[349965681,1737539476181,-500.0,0.00021634,2]
[349965682,1737539476190,-550.03,0.00021634,2]
[349965683,1737539476200,-2666.23,0.00021634,2]
[349965684,1737539476209,-652.0,0.00021634,2]
[349965685,1737539476219,-2266.95,0.00021634,2]
[349965686,1737539476228,-884.93,0.00021634,2]
[349965687,1737539476238,-672.02,0.00021634,2]
[349965688,1737539476248,-594.55,0.00021634,2]
[349965689,1737539476257,-1269.21,0.00021634,2]
[349965690,1737539476267,-206.65399869,0.00021634,2]
[349965691,1737539476277,-2597.44,0.00021634,2]
[349965692,1737539476286,-576.65,0.00021634,2]
[349965693,1737539476296,-500.0,0.00021634,2]
[349965694,1737539476306,-500.0,0.00021634,2]
[349965695,1737539476315,-500.0,0.00021634,2]
[349965696,1737539476326,-788.0,0.00021634,2]
[349965697,1737539476335,-937.58,0.00021634,2]
[349965698,1737539476346,-500.0,0.00021634,2]
[349965699,1737539476357,-618.82,0.00021634,2]
[349965700,1737539476368,-715.49,0.00021634,2]
[349965701,1737539476379,-996.45,0.00021634,2]
[349965702,1737539476388,-500.0,0.00021635,2]
[349965703,1737539476397,-500.0,0.00021635,2]
[349965704,1737539476407,-1321.14,0.00021635,2]
[349965705,1737539476535,-939.41,0.00021635,2]
[349965706,1737539476544,-973.31,0.00021635,2]
[349965707,1737539476554,-980.35,0.00021635,2]
[349965708,1737539476563,-500.0,0.00021635,2]
[349965709,1737539476573,-500.0,0.00021635,2]
[349965710,1737539476583,-875.35,0.00021635,2]
[349965711,1737539476593,-500.0,0.00021635,2]
[349965712,1737539476602,-500.0,0.00021635,2]
[349965713,1737539476611,-260.39498155,0.00021637,2]
[349965714,1737539476621,-150.0,0.00021637,2]
[349965715,1737539476632,-150.0,0.00021664,2]
[349965716,1737539476642,-350.0,0.00021668,2]
[349965717,1737539476651,-150.0,0.00021677,4]
[349965718,1737539476661,-909.73,0.00021685,7]
[349965719,1737539476671,-909.73,0.00021685,7]
[349965720,1737539476680,-204.15211244,0.00021686,3]
[349965721,1737539476691,-150.0,0.00021692,2]
[349965722,1737539476700,-206.0,0.000217,2]
[349965723,1737539476710,-208.0,0.000217,2]
[349965724,1737539476720,-150.0,0.00021719,2]
[349965725,1737539476730,-218.70303413,0.00021747,2]
[349965726,1737539476740,-150.0,0.00021754,2]
[349965727,1737539476750,-204.15211244,0.00021757,3]
[349965728,1737539476760,-500.0,0.00021771,2]
[349965729,1737539476770,-150.0,0.00021776,2]
[349965730,1737539476780,-2160.0,0.0002178,2]
[349965731,1737539476788,-500.0,0.0002178,2]
[349965732,1737539476797,-500.0,0.0002178,2]
[349965733,1737539476807,-500.0,0.0002178,2]
[349965734,1737539476816,-500.0,0.0002178,2]
[349965735,1737539476826,-500.0,0.0002178,2]
[349965736,1737539476836,-500.0,0.0002178,2]
[349965737,1737539476845,-500.0,0.0002178,2]
[349965738,1737539476855,-500.0,0.0002178,2]
[349965739,1737539476864,-500.0,0.0002178,2]
[349965740,1737539476874,-150.0,0.00021789,2]
[349965741,1737539476883,-150.0,0.00021793,2]
[349965742,1737539476892,-150.0,0.00021816,2]
[349965743,1737539476902,-231.11515039,0.00021816,2]
[349965744,1737539476912,-150.0,0.00021818,2]
[349965745,1737539476921,-150.0,0.00021823,2]
[349965746,1737539476930,-150.0,0.00021823,2]
[349965747,1737539476940,-150.0,0.00021828,2]
[349965748,1737539476949,-204.15211244,0.00021829,3]
[349965749,1737539476958,-150.0,0.00021834,2]
[349965750,1737539476968,-150.0,0.00021834,2]
[349965751,1737539476977,-150.0,0.00021842,2]
[349965752,1737539476986,-150.0,0.00021868,2]
[349965753,1737539476995,-151.40246118,0.00021871,2]
[349965754,1737539477006,-1000.0,0.00021874,2]
[349965755,1737539477016,-150.0,0.00021881,2]
[349965756,1737539477026,-150.0,0.00021887,2]
[349965757,1737539477037,-150.0,0.00021897,4]
[349965758,1737539477048,-520.88792304,0.00021898,2]
[349965759,1737539477059,-1818.6221345,0.000219,3]
[349965760,1737539477068,-2000.0,0.000219,2]
[349965761,1737539477078,-2000.0,0.000219,2]
[349965762,1737539477088,-206.16625035,0.000219,2]
[349965763,1737539477102,-150.87349607,0.000219,2]
[349965764,1737539477112,-150.87349606,0.000219,2]
[349965765,1737539477122,-204.15211244,0.000219,3]
[349965766,1737539477133,-150.0,0.000219,2]
[349965767,1737539477144,-150.0,0.00021903,2]
[349965768,1737539477154,-500.0,0.00021907,2]
[349965769,1737539477164,-500.0,0.00021907,2]
[349965770,1737539477174,-924.72,0.00021907,2]
[349965771,1737539477185,-1138.95,0.00021907,2]
[349965772,1737539477195,-818.44,0.00021907,2]
[349965773,1737539477205,-2175.56,0.00021907,2]
[349965774,1737539477215,-439.46557562,0.00021907,2]
[349965775,1737539477225,-500.0,0.00021907,2]
[349965776,1737539477237,-500.0,0.00021907,2]
[349965777,1737539477247,-743.44,0.00021907,2]
[349965778,1737539477257,-1763.14,0.00021907,2]
[349965779,1737539477266,-999.52,0.00021907,2]
[349965780,1737539477277,-1084.08,0.00021907,2]
[349965781,1737539477286,-704.096055,0.00021907,2]
[349965782,1737539477296,-1301.57,0.00021907,2]
[349965783,1737539477306,-1132.86,0.00021907,2]
[349965784,1737539477316,-1771.29,0.00021907,2]
[349965785,1737539477327,-660.07,0.00021907,2]
[349965786,1737539477337,-941.14,0.00021907,2]
[349965787,1737539477346,-1237.633252,0.00021907,2]
[349965788,1737539477356,-1458.89,0.00021907,2]
[349965789,1737539477367,-2891.68,0.00021907,2]
[349965790,1737539477376,-2543.68,0.00021907,2]
[349965791,1737539477385,-500.0,0.00021907,2]
[349965792,1737539477395,-847.27,0.00021907,2]
[349965793,1737539477406,-809.5,0.00021907,2]
[349965794,1737539477416,-599.51,0.00021907,2]
[349965795,1737539477426,-1278.86,0.00021907,2]
[349965796,1737539477436,-2625.35,0.00021907,2]
[349965797,1737539477446,-501.8,0.00021907,2]
[349965798,1737539477455,-1090.92,0.00021907,2]
[349965799,1737539477467,-3292.63,0.00021907,2]
[349965800,1737539477478,-1345.08,0.00021907,2]
[349965801,1737539477487,-1076.69,0.00021907,2]
[349965802,1737539477497,-540.04,0.00021907,2]
[349965803,1737539477506,-842.21,0.00021907,2]
[349965804,1737539477516,-500.0,0.00021907,2]
[349965805,1737539477526,-1119.08,0.00021907,2]
[349965806,1737539477536,-996.35,0.00021907,2]
[349965807,1737539477545,-1171.69,0.00021907,2]
[349965808,1737539477556,-602.97,0.00021907,2]
[349965809,1737539477565,-4255.43,0.00021907,2]
[349965810,1737539477576,-1387.04,0.00021907,2]
[349965811,1737539477586,-1143.16,0.00021907,2]
[349965812,1737539477595,-1965.65,0.00021907,2]
[349965813,1737539477605,-500.0,0.00021907,2]
[349965814,1737539477614,-818.07,0.00021907,2]
[349965815,1737539477623,-500.0,0.00021907,2]
[349965816,1737539477632,-1209.13,0.00021907,2]
[349965817,1737539477643,-875.21,0.00021907,2]
[349965818,1737539477653,-2793.57,0.00021907,2]
[349965819,1737539477663,-1439.89,0.00021907,2]
[349965820,1737539477672,-1524.01,0.00021907,2]
[349965821,1737539477682,-153.695407,0.00021907,2]
[349965822,1737539477691,-1051.9,0.00021907,2]
[349965823,1737539477701,-500.0,0.00021907,2]
[349965824,1737539477711,-548.15,0.00021907,2]
[349965825,1737539477721,-960.28,0.00021907,2]
[349965826,1737539477731,-500.0,0.00021907,2]
[349965827,1737539477742,-755.05,0.00021907,2]
[349965828,1737539477752,-500.0,0.00021907,2]
[349965829,1737539477762,-500.0,0.00021907,2]
[349965830,1737539477772,-1639.44,0.00021907,2]
[349965831,1737539477782,-2246.81,0.00021907,2]
[349965832,1737539477791,-523.68,0.00021908,2]
[349965833,1737539477809,-500.0,0.00021908,2]
[349965834,1737539477819,-500.0,0.00021908,2]
[349965835,1737539477829,-500.0,0.00021908,2]
[349965836,1737539477839,-500.0,0.00021908,2]
[349965837,1737539477848,-291.92138929,0.00021908,2]
[349965838,1737539477858,-814.47,0.00021908,2]
[349965839,1737539477867,-352.0998606,0.00021908,2]
[349965840,1737539477877,-500.0,0.00021908,2]
[349965841,1737539477886,-541.13,0.00021908,2]
[349965842,1737539477896,-500.0,0.00021908,2]
[349965843,1737539477905,-501.98,0.00021908,2]
[349965844,1737539477914,-500.0,0.00021908,2]
[349965845,1737539477924,-623.55,0.00021908,2]
[349965846,1737539477933,-500.0,0.00021908,2]
[349965847,1737539477943,-500.0,0.00021908,2]
[349965848,1737539477952,-500.0,0.00021908,2]
[349965849,1737539477962,-547.09,0.00021908,2]
[349965850,1737539477972,-500.0,0.00021908,2]
[349965851,1737539477982,-500.0,0.00021908,2]
[349965852,1737539477991,-831.12,0.00021908,2]
[349965853,1737539478001,-500.0,0.00021908,2]
[349965854,1737539478010,-537.72,0.00021908,2]
[349965855,1737539478020,-610.48997718,0.00021908,2]
[349965856,1737539478029,-574.61,0.00021908,2]
[349965857,1737539478040,-500.0,0.00021908,2]
[349965858,1737539478049,-815.28,0.00021908,2]
[349965859,1737539478058,-500.0,0.00021908,2]
[349965860,1737539478068,-500.0,0.00021908,2]
[349965861,1737539478081,-500.0,0.00021908,2]
[349965862,1737539478091,-500.0,0.00021908,2]
[349965863,1737539478102,-738.84,0.00021908,2]
[349965864,1737539478111,-1035.26,0.00021908,2]
[349965865,1737539478122,-795.1,0.00021908,2]
[349965866,1737539478131,-500.0,0.00021908,2]
[349965867,1737539478141,-586.3,0.00021908,2]
[349965868,1737539478151,-627.59,0.00021908,2]
[349965869,1737539478161,-734.0,0.00021908,2]
[349965870,1737539478170,-500.0,0.00021908,2]
[349965871,1737539478180,-653.39,0.00021908,2]
[349965872,1737539478190,-886.51,0.00021908,2]
[349965873,1737539478200,-816.46,0.00021908,2]
[349965874,1737539478210,-939.52,0.00021908,2]
[349965875,1737539478219,-500.0,0.00021908,2]
[349965876,1737539478228,-572.2,0.00021908,2]
[349965877,1737539478238,-500.0,0.00021908,2]
[349965878,1737539478247,-737.25,0.00021908,2]
[349965879,1737539478257,-536.52,0.00021908,2]
[349965880,1737539478266,-500.0,0.00021908,2]
[349965881,1737539478276,-544.31,0.00021908,2]
[349965882,1737539478285,-500.0,0.00021908,2]